Cogmind - Beta 15 @@@ ROGUE MODE // 2025.06.01 @ 15:15:55 Player: morimori Result: Destroyed by P-80 Master with Gamma Rifle Performance ------------- Evolutions (7) 3500 Regions Visited (28) 5600 Robots Destroyed (119) 595 Value Destroyed (3016) 3016 Prototype IDs (50) 1000 Alien Tech Used (2) 400 Bonus (-711) -711 TOTAL SCORE: 13400 Bonus ------- Follower Combat Kills 516 Met Zhirov 300 MAIN.C Attacked Warlord 500 Friendly Fire -2027 Cogmind --------- Core Integrity 0/1300 Matter 91/300 Energy 99/100 System Corruption 24% Temperature Cool (0) Movement Core (50) Location -3/Testing Parts ------- > --- POWER (2) -------- (None) > --- PROPULSION (6) --- (None) > --- UTILITY (11) ----- Spectral Analyzer Experimental Signal Interpreter Graphene Brace > --- WEAPON (2) ------- (None) > --- INVENTORY (5) ---- Experimental Energy Well Potential Cannon Potential Cannon Peak State ------------ > --- POWER ------------ Heavy Antimatter Reactor Micro Antimatter Reactor > --- PROPULSION ------- Combat Gravmag System Combat Gravmag System Cooled Antigrav System Combat Antigrav System Antigrav Array > --- UTILITY ---------- Advanced Coolant Injector High-capacity Storage Unit Spectral Analyzer Experimental Signal Interpreter Graphene Brace Improved Hacking Suite Advanced Hacking Suite Advanced Hacking Suite Advanced Hacking Suite Advanced Hacking Suite Experimental System Shield > --- WEAPON ----------- Nova Cannon Power Sword > --- INVENTORY -------- Vortex Chain Reactor Improved Antigrav System Advanced Coolant Injector Huge Storage Unit Advanced Sensor Array Experimental Targeting Computer Experimental Targeting Computer Precision Energy Filter Precision Energy Filter Advanced Weapon Cycler Experimental Phase Shifter Experimental Utility Shielding Authchip [Power] Authchip [Device] Authchip [Device] Authchip [Device] Authchip [Armor] Authchip [Weapon] Transdimensional Reconstructor [Rating: 155] Favorites ----------- Power Light Fission Core Engine Improved Ion Engine Power Core Light Fission Core Reactor Light Antimatter Reactor Propulsion Combat Airjet Leg Improved Thunder Leg Wheel Compact Wheel Hover Unit Combat Airjet Flight Unit Flightbrick Utility Advanced Hacking Suite Device Advanced Sensor Array Storage High-capacity Storage Unit Processor Advanced Signal Interpreter Hackware Advanced Hacking Suite Protection Makeshift Light Armor Plating Weapon Phase Cannon Energy Gun Shock Rifle Energy Cannon Phase Cannon Ballistic Gun Assault Rifle Ballistic Cannon Linear Accelerator Launcher Grenade Launcher Impact Weapon Makeshift Hammer Slashing Weapon Power Sword Build | -11 -10 -10 -10 -8 -7 -7 -7 -6 -6 -6 -6 -6 -5 -5 -5 -5 -5 -5 -4 -4 -4 -4 -4 -4 -4 -3 -3 -3 ------- Run | Yrd Mat Min Sub Mat Fac Low Low Fac Was Fac Low Low Fac Was Fac Upp Upp War Pro Fac Was Fac Upp Upp Zhi Pro Res Tes Slots Evolved 14 | . . . . 4 2 . . 2 . . . . 2 . . . . . . 2 . . . . . . 2 . Power 1 | . . . . . . . . . . . . . . . . . . . . . . . . . . . 1 . Propulsion 4 | . . . . 2 1 . . 1 . . . . . . . . . . . . . . . . . . . . Utility 9 | . . . . 2 1 . . 1 . . . . 2 . . . . . . 2 . . . . . . 1 . Weapon . | . . . . . . . . . . . . . . . . . . . . . . . . . . . . . Parts Attached 150 | 7 7 . 15 24 13 2 3 5 . 6 3 2 9 . 4 . 1 8 . 8 . 8 . . 4 . 16 5 Power 17 | 1 1 . 3 3 . . . 1 . . . 1 . . 1 . 1 . . . . 1 . . 1 . 2 1 Engine 7 | 1 1 . 3 2 . . . . . . . . . . . . . . . . . . . . . . . . Core 5 | . . . . 1 . . . 1 . . . 1 . . 1 . 1 . . . . . . . . . . . Reactor 5 | . . . . . . . . . . . . . . . . . . . . . . 1 . . 1 . 2 1 Propulsion 43 | 2 1 . 6 9 5 . 2 . . 4 1 . 1 . 1 . . 2 . . . . . . . . 5 4 Treads . | . . . . . . . . . . . . . . . . . . . . . . . . . . . . . Leg 1 | . . . . . . . . . . . . . . . . . . . . . . . . . . . . 1 Wheel 14 | 2 1 . 6 5 . . . . . . . . . . . . . . . . . . . . . . . . Hover 27 | . . . . 3 5 . 2 . . 4 1 . 1 . 1 . . 2 . . . . . . . . 5 3 Flight 1 | . . . . 1 . . . . . . . . . . . . . . . . . . . . . . . . Utility 53 | 2 1 . 2 4 4 . . 3 . 2 1 . 8 . 1 . . 3 . 8 . 7 . . 3 . 4 . Device 11 | 1 . . 1 . 2 . . 1 . . . . . . . . . 2 . . . 1 . . 1 . 2 . Storage 6 | 1 1 . . 2 . . . . . . 1 . . . . . . . . . . . . . . . 1 . Processor 7 | . . . . 1 1 . . 1 . . . . 1 . . . . 1 . . . 1 . . 1 . . . Hackware 27 | . . . . 1 1 . . 1 . 2 . . 7 . 1 . . . . 8 . 5 . . . . 1 . Protection 2 | . . . 1 . . . . . . . . . . . . . . . . . . . . . 1 . . . Artifact . | . . . . . . . . . . . . . . . . . . . . . . . . . . . . . Weapon 37 | 2 4 . 4 8 4 2 1 1 . . 1 1 . . 1 . . 3 . . . . . . . . 5 . Energy Gun 11 | . . . . 7 1 . . . . . . . . . . . . 3 . . . . . . . . . . Energy Cannon 4 | . . . 1 . 1 . . 1 . . . . . . . . . . . . . . . . . . 1 . Ballistic Gun 8 | 2 2 . 1 . 1 1 . . . . . . . . . . . . . . . . . . . . 1 . Ballistic Cannon 2 | . . . 1 . . . . . . . . . . . . . . . . . . . . . . . 1 . Launcher 8 | . 2 . . . 1 1 1 . . . 1 1 . . . . . . . . . . . . . . 1 . Special Weapon . | . . . . . . . . . . . . . . . . . . . . . . . . . . . . . Impact Weapon 1 | . . . 1 . . . . . . . . . . . . . . . . . . . . . . . . . Slashing Weapon 3 | . . . . 1 . . . . . . . . . . 1 . . . . . . . . . . . 1 . Piercing Weapon . | . . . . . . . . . . . . . . . . . . . . . . . . . . . . . Special Melee Weapon . | . . . . . . . . . . . . . . . . . . . . . . . . . . . . . Unidentified Prototypes 15 | . . . 1 1 2 . . . . . . . . . . . . 6 . . . . . . 4 . 1 . Corrupted Parts 2 | . . . . 2 . . . . . . . . . . . . . . . . . . . . . . . . System Corruption 5 | . . . . 5 . . . . . . . . . . . . . . . . . . . . . . . . Parts Lost 37 | . . . 6 5 . . . . . . . . . . 1 . . . . . . 1 . . . . 12 12 Power 4 | . . . 1 . . . . . . . . . . . 1 . . . . . . . . . . . 1 1 Propulsion 17 | . . . 3 3 . . . . . . . . . . . . . . . . . . . . . . 5 6 Utility 10 | . . . 1 . . . . . . . . . . . . . . . . . . 1 . . . . 4 4 Weapon 6 | . . . 1 2 . . . . . . . . . . . . . . . . . . . . . . 2 1 Highest Loss Streak 9 | . . . 5 2 . . . . . . . . . . 1 . . . . . . 1 . . . . 8 9 To Critical Strikes . | . . . . . . . . . . . . . . . . . . . . . . . . . . . . . Average Backups 18 | 3 14 20 19 18 15 15 15 14 14 17 20 20 18 18 19 19 20 19 19 18 19 18 19 19 16 19 20 17 Power 1 | 1 3 3 1 1 1 1 1 1 1 1 1 1 1 1 . . . 1 1 1 2 2 2 1 1 1 . . Propulsion 2 | . 5 7 6 5 1 1 1 . . 2 2 2 2 3 3 2 2 2 2 1 1 1 1 1 . 1 2 . Utility 11 | . 2 4 4 5 7 9 10 10 11 12 15 15 12 12 13 15 15 14 14 13 15 14 16 16 13 16 16 14 Weapon 3 | . 3 6 6 6 4 3 3 3 2 2 2 2 2 2 2 2 2 2 2 1 1 . . . . . 1 3 Tool/Special . | . . . . . . . . . . . . . . . . . . . . . . . . . . . . . Unused Backups 59 | . 7 2 1 13 2 . . 3 . 1 . 1 2 1 4 . 1 2 . . . 1 . 1 . . . 17 Power 6 | . 3 . . 1 . . . . . . . . 1 . . . . . . . . . . 1 . . . . Propulsion 9 | . . . . 3 1 . . . . . . . 1 1 2 . . 1 . . . . . . . . . . Utility 29 | . 2 1 1 2 . . . 2 . 1 . 1 . . 2 . 1 1 . . . 1 . . . . . 14 Weapon 15 | . 2 1 . 7 1 . . 1 . . . . . . . . . . . . . . . . . . . 3 Tool/Special . | . . . . . . . . . . . . . . . . . . . . . . . . . . . . . Average Slot Usage (%) 92 | . 100 100 92 86 95 100 100 96 100 97 93 93 93 94 94 94 94 93 94 92 94 93 94 94 93 94 81 58 Engine 3 | . 14 14 19 8 . . . . . . . . . . . . . . . . . . . . . . . . Core 3 | . . . . . 7 7 7 6 6 6 6 6 5 5 5 5 5 5 5 5 5 . . . . . . . Wheel 6 | . 28 28 26 21 . . . . . . . . . . . . . . . . . . . . . . . . Hover 22 | . . . . 3 37 38 38 40 40 37 33 33 28 29 29 29 29 29 29 26 26 26 26 26 26 26 22 15 Device 6 | . 14 14 12 . 6 7 6 6 6 6 6 6 4 5 5 5 5 4 4 4 5 4 5 5 . 5 6 4 Storage 7 | . 14 14 13 17 7 7 7 6 6 6 6 6 5 5 5 5 5 5 5 5 5 5 5 5 4 5 4 3 Processor 6 | . . . . . 6 7 7 6 6 6 6 6 8 11 11 11 11 11 11 10 10 10 10 10 15 10 9 9 Hackware 17 | . . . . 8 15 15 15 16 20 20 20 20 25 23 23 23 23 23 23 30 31 31 31 31 31 31 22 13 Energy Cannon 4 | . . . 5 . 2 7 3 4 6 6 6 6 5 5 5 5 5 3 5 5 5 4 5 5 5 5 1 . Ballistic Gun 3 | . 27 14 9 . . . . . . . . . . . . . . . . . . . . . . . . . Slashing Weapon 3 | . . . . 2 6 6 7 6 6 6 4 5 5 5 5 4 4 5 4 5 5 5 5 5 5 5 3 3 Peak Build Rating 155 | 7 10 11 25 66 48 49 47 58 59 71 74 73 89 90 99 99 98 110 109 122 122 129 129 129 134 130 155 126 Average Rating 73 | 5 8 10 20 31 40 45 46 53 58 65 71 72 83 89 95 97 97 101 108 119 122 126 129 129 130 130 140 95 On Entrance 76 | . 7 10 11 20 31 45 49 47 58 59 71 71 72 89 90 99 99 97 109 109 122 122 129 129 129 130 130 94 Naked Turns . | . . . . . . . . . . . . . . . . . . . . . . . . . . . . . Heaviest Build 143 | 12 53 53 64 56 45 41 75 38 38 58 66 64 59 59 65 65 62 60 143 59 59 64 64 104 109 70 141 104 Greatest Support 89 | 26 32 32 40 40 39 39 41 48 41 64 68 68 70 70 72 72 72 74 74 74 74 74 74 74 74 74 89 65 Greatest Overweight (x) 11 | . 1 1 3 5 1 1 11 . . . 1 . . . . . . . 1 . . . . 1 1 . 2 5 Average Overweight (x) . | . . 1 1 1 . . . . . . . . . . . . . . . . . . . . . . . . Largest Inventory Capacity 25 | 8 20 20 20 20 20 15 20 15 15 20 25 20 20 20 20 20 20 20 25 20 20 20 20 25 25 20 25 25 Average Capacity 19 | 7 17 20 20 19 15 15 15 15 15 18 20 20 20 20 20 20 20 20 20 20 20 20 20 22 22 20 22 19 Most Carried 24 | 7 20 20 20 20 18 15 15 15 15 20 20 20 20 20 20 20 20 20 20 20 20 20 20 21 22 20 24 24 Average Carried 18 | 2 15 20 19 19 15 14 15 14 14 17 20 19 18 18 19 19 19 19 20 19 20 19 20 20 17 20 21 18 Final Capacity 20 | 8 20 20 20 20 15 15 15 15 15 20 20 20 20 20 20 20 20 20 20 20 20 20 20 20 20 20 20 5 Final Carried 20 | 6 20 20 20 19 15 15 15 15 15 20 20 20 18 20 19 20 20 20 20 20 20 20 20 20 20 20 20 5 Class Distribution -------------------- 30% | Hacker-Mutant 20% | Mutant 18% | Hacker-Scout 16% | Wizard-Scout 6% | Scavenger-Mutant Dominant Class ---------------- Mutant | -10/Materials Mutant | -10/Mines Mutant | -10/Subcaves Scavenger-Mutant | -8/Materials Hacker-Mutant | -7/Factory Hacker-Mutant | -7/Lower Caves Hacker-Mutant | -7/Lower Caves Hacker-Mutant | -6/Factory Hacker-Mutant | -6/Waste Hacker-Mutant | -6/Factory Hacker-Mutant | -6/Lower Caves Hacker-Mutant | -6/Lower Caves Hacker-Scout | -5/Factory Hacker-Scout | -5/Waste Hacker-Scout | -5/Factory Hacker-Scout | -5/Upper Caves Hacker-Scout | -5/Upper Caves Hacker-Scout | -5/Warlord Hacker-Scout | -4/Proximity Caves Wizard-Scout | -4/Factory Wizard-Scout | -4/Waste Wizard-Scout | -4/Factory Wizard-Scout | -4/Upper Caves Wizard-Assassin | -4/Upper Caves Wizard-Mutant | -4/Zhirov Wizard-Scout | -3/Proximity Caves Wizard-Scout | -3/Research Hacker-Mutant | -3/Testing Resources | -11 -10 -10 -10 -8 -7 -7 -7 -6 -6 -6 -6 -6 -5 -5 -5 -5 -5 -5 -4 -4 -4 -4 -4 -4 -4 -3 -3 -3 ----------- Run | Yrd Mat Min Sub Mat Fac Low Low Fac Was Fac Low Low Fac Was Fac Upp Upp War Pro Fac Was Fac Upp Upp Zhi Pro Res Tes Matter Collected 3878 | 318 305 91 306 355 132 193 260 40 30 90 225 68 140 . . 151 74 . 97 245 . . 82 120 80 20 337 119 Remotely . | . . . . . . . . . . . . . . . . . . . . . . . . . . . . . Salvage Created 5573 | 143 415 43 508 1195 156 597 300 27 192 166 59 62 223 141 . 61 147 . 38 129 . 54 . . 233 14 577 93 Parts 294 | 9 30 7 28 59 10 11 15 1 9 11 4 1 7 11 . 6 . . 5 4 . 4 . . 2 1 53 6 Haulers Intercepted 5 | . 2 . . 3 . . . . . . . . . . . . . . . . . . . . . . . . Recyclers Shooed 2 | . 1 . . . . . . . . . . . . . . . . . . . . . . . . . 1 . Parts Field Recycled . | . . . . . . . . . . . . . . . . . . . . . . . . . . . . . Retrieved Matter . | . . . . . . . . . . . . . . . . . . . . . . . . . . . . . Parts Self-Destructed 42 | . . . 8 . . 2 6 . . . 6 1 . . . 10 . . 6 . . . . . 2 1 . . Prevented 13 | . . . . . . 3 2 . . . . 4 . . . 3 . . 1 . . . . . . . . . Kills | -11 -10 -10 -10 -8 -7 -7 -7 -6 -6 -6 -6 -6 -5 -5 -5 -5 -5 -5 -4 -4 -4 -4 -4 -4 -4 -3 -3 -3 ------- Run | Yrd Mat Min Sub Mat Fac Low Low Fac Was Fac Low Low Fac Was Fac Upp Upp War Pro Fac Was Fac Upp Upp Zhi Pro Res Tes Combat Hostiles Destroyed 69 | . 10 6 10 12 2 . 7 . . 1 6 . . . . 1 . . 4 . . 1 . . . 1 7 1 Melee 7 | . . . . . . . . . . . . . . . . . . . . . . 1 . . . 1 4 1 Guns 13 | . 3 . 3 7 . . . . . . . . . . . . . . . . . . . . . . . . Cannons 11 | . . . 6 . . . . . . 1 1 . . . . . . . . . . . . . . . 3 . AOE 35 | . 7 6 . 4 2 . 6 . . . 5 . . . . 1 . . 4 . . . . . . . . . Classes Destroyed 21 | 2 5 1 1 2 . 2 1 . 1 1 . . . . . 1 . . 1 . . 1 . . . . 1 1 Worker 4 | . . 1 . 3 . . . . . . . . . . . . . . . . . . . . . . . . Builder 6 | . . . . 2 . . . . . 3 . . . . . . . . . . . . . . . . 1 . Tunneler 5 | 3 . . . 1 . . . . . . . . . . . . . . . . . . . . . . 1 . Hauler 5 | . 2 . . 3 . . . . . . . . . . . . . . . . . . . . . . . . Recycler 9 | 1 1 . . 2 1 . . . . . . . 2 . . . . . . 1 . . . . . . 1 . Mechanic 1 | . . . . . . . . . . . . . . . . . . . . . . . . . . . . 1 Operator 4 | . 1 . . 1 . 1 . . . 1 . . . . . . . . . . . . . . . . . . Drone 2 | . . . . . . . . . . . . . . . . . . . 1 . . . . . . 1 . . Watcher 9 | . 3 . . 3 2 . . 1 . . . . . . . . . . . . . . . . . . . . Swarmer 27 | . 6 6 . . 2 . 4 . . . 6 . . . . . . . 3 . . . . . . . . . Cutter 2 | . . . . . . . . . . . . . . . . . . . . . . . . . . . 2 . Grunt 15 | . 4 . . 11 . . . . . . . . . . . . . . . . . . . . . . . . Brawler 1 | . . . . 1 . . . . . . . . . . . . . . . . . . . . . . . . Sentry 1 | . . . . . . . . . . 1 . . . . . . . . . . . . . . . . . . Hunter 1 | . . . . . . . . . . . . . . . . 1 . . . . . . . . . . . . Programmer 7 | . . . . . . . . . . . . . . . . . . . . . . 1 . . . . 5 1 Subdweller 10 | . . . 10 . . . . . . . . . . . . . . . . . . . . . . . . . Packrat 2 | . . . . . . . 1 . . . . . . . . . 1 . . . . . . . . . . . Samaritan 1 | . . . . . . 1 . . . . . . . . . . . . . . . . . . . . . . Tinkerer 1 | . . . . . . 1 . . . . . . . . . . . . . . . . . . . . . . Wasp 2 | . . . . . . . . . 2 . . . . . . . . . . . . . . . . . . . Thug 1 | . . . . . . . . . . . . 1 . . . . . . . . . . . . . . . . Savage 1 | . . . . . . . 1 . . . . . . . . . . . . . . . . . . . . . Butcher 2 | . . . . . . . 2 . . . . . . . . . . . . . . . . . . . . . Martyr 4 | . . . . . . . . . 2 . . . . 2 . . . . . . . . . . . . . . Best Kill Streak 7 | 2 7 4 3 5 2 . 4 1 . 2 4 . 1 . . 1 . . 3 1 . 1 . . . 1 3 1 Combat Bots Only 5 | . 5 3 3 3 2 . 4 . . 1 4 . . . . 1 . . 3 . . 1 . . . 1 3 1 Max Kills in Single Turn 4 | 1 3 4 1 4 2 1 2 1 1 1 3 1 1 1 . 1 1 . 3 1 . 1 . . . 1 1 1 Gunslinging . | . . . . . . . . . . . . . . . . . . . . . . . . . . . . . Exploded 3 | . 2 3 . 3 2 . 2 . . . 3 . . . . 1 . . 3 . . . . . . . . . Melee 1 | . . . . . . . . . . . . . . . . . . . . . . 1 . . . 1 1 1 Uniques/NPCs Destroyed . | . . . . . . . . . . . . . . . . . . . . . . . . . . . . . Combat | -11 -10 -10 -10 -8 -7 -7 -7 -6 -6 -6 -6 -6 -5 -5 -5 -5 -5 -5 -4 -4 -4 -4 -4 -4 -4 -3 -3 -3 -------- Run | Yrd Mat Min Sub Mat Fac Low Low Fac Was Fac Low Low Fac Was Fac Upp Upp War Pro Fac Was Fac Upp Upp Zhi Pro Res Tes Hostile Shots Fired 557 | . 14 3 43 34 10 . 5 3 . 3 71 3 8 . 8 3 . . . 7 . 26 4 4 . . 185 123 Missed 212 | . 4 . 11 10 7 . 2 2 . 2 29 . 3 . 3 2 . . . 3 . 10 3 2 . . 69 50 Hits 345 | . 10 3 32 24 3 . 3 1 . 1 42 3 5 . 5 1 . . . 4 . 16 1 2 . . 116 73 Melee 19 | . . . . 2 . . . . . . 1 . . . . . . . . . . . . . . . 16 . Projectile 326 | . 10 3 32 22 3 . 3 1 . 1 41 3 5 . 5 1 . . . 4 . 16 1 2 . . 100 73 AOE 4 | . . . 4 . . . . . . . . . . . . . . . . . . . . . . . . . Critical Strikes 30 | . . . . 4 . . . . . . 1 . . . 1 . . . . . . 2 . . . . 14 8 Actively Blocked 15 | . . . . . . . . . . . . . . . . . . . . . . 1 . . . . 6 8 Part Disruptions 2 | . . . . . . . . . . . . . . . . . . . . . . . . . . . 2 . Damage Taken 7338 | . 107 24 940 402 46 . 50 20 . 19 619 54 131 . 98 19 59 . 11 77 . 311 24 33 . . 2759 1535 Core 1756 | . . 7 171 14 . . . . . 19 118 20 69 . . 19 . . 11 20 . 80 . . . . 650 558 Absorbed by Shields 11 | . . . . . . . . . . . . . . . . . . . 11 . . . . . . . . . Regen/Repaired (Parts) 654 | . . . . . 16 . . . . . . . 263 23 121 . . 12 . . . 99 . . . . . 120 Core Remaining (%) 83 | 100 . . 28 97 . . 100 . . . . 81 . . . . . . 90 . . . . . . 91 . . Volleys Fired 489 | 12 40 2 70 44 2 10 39 15 5 8 40 8 12 1 20 9 3 1 4 28 . 43 6 6 5 8 47 1 Largest 2 | 2 2 1 2 2 1 1 1 1 1 1 2 2 1 1 1 2 2 1 1 1 . 1 1 1 1 1 2 1 Hottest 198 | 40 40 30 120 100 65 65 65 85 85 85 128 128 85 85 85 128 128 45 43 85 . 85 85 85 85 85 198 54 Shots Fired 617 | 24 74 2 92 87 2 10 39 15 5 8 41 9 12 1 20 11 4 1 4 28 . 44 6 6 5 8 57 2 Gun 228 | 24 68 . 48 87 . . . . . . . . . . . . . 1 . . . . . . . . . . Cannon 332 | . . . 44 . 1 7 20 15 5 8 32 6 12 1 20 10 3 . . 28 . 44 6 6 5 8 49 2 Launcher 57 | . 6 2 . . 1 3 19 . . . 9 3 . . . 1 1 . 4 . . . . . . . 8 . Special . | . . . . . . . . . . . . . . . . . . . . . . . . . . . . . Kinetic 163 | 24 68 . 49 . 1 . . . . . . . . . . . . . . . . . . . . . 19 2 Thermal 310 | . . . 43 . 1 7 20 15 5 8 32 6 12 1 20 10 3 . . 28 . 44 6 6 5 8 30 . Explosive 25 | . 6 2 . . . . 5 . . . 9 . . . . . 1 . 2 . . . . . . . . . Electromagnetic 118 | . . . . 87 . 3 14 . . . . 3 . . . 1 . . 2 . . . . . . . 8 . Entropic 1 | . . . . . . . . . . . . . . . . . . 1 . . . . . . . . . . Robot Hit Streak 12 | 4 9 4 12 9 1 1 11 . 3 3 3 2 . . . 1 . . 2 . . . . . 5 . 8 . Robot Miss Streak 9 | 4 9 . 1 6 . 2 3 . 1 2 3 1 . 1 . 2 . . 3 . . 4 . . . 2 2 . Penetration Max . | . . . . . . . . . . . . . . . . . . . . . . . . . . . . . Secondary Targets . | . . . . . . . . . . . . . . . . . . . . . . . . . . . . . Shots Hit Robots 304 | 11 41 1 55 61 4 20 13 2 10 9 6 3 2 8 . 1 3 . 1 1 . 3 . . 5 1 31 12 Core Hits 199 | 6 28 7 17 33 6 8 12 1 4 2 9 4 1 3 . 2 1 . 6 1 . 2 . . 4 1 35 6 Critical Kills 2 | . . . 1 1 . . . . . . . . . . . . . . . . . . . . . . . . Critical Parts Destroyed 1 | 1 . . . . . . . . . . . . . . . . . . . . . . . . . . . . Critical Strikes 11 | 1 . . 1 2 . . . . 1 . . . . 3 . . . . . . . . . . . . . 3 Meltdown 1 | . . . 1 . . . . . . . . . . . . . . . . . . . . . . . . . Destroy 1 | 1 . . . . . . . . . . . . . . . . . . . . . . . . . . . . Corrupt 1 | . . . . 1 . . . . . . . . . . . . . . . . . . . . . . . . Smash 1 | . . . . 1 . . . . . . . . . . . . . . . . . . . . . . . . Sever 7 | . . . . . . . . . 1 . . . . 3 . . . . . . . . . . . . . 3 Melee Attacks 314 | . . . 5 12 27 26 5 18 7 30 3 3 20 14 22 4 4 1 . 18 . 33 . . . 2 42 18 Impact 9 | . . . 5 4 . . . . . . . . . . . . . . . . . . . . . . . . Slashing 305 | . . . . 8 27 26 5 18 7 30 3 3 20 14 22 4 4 1 . 18 . 33 . . . 2 42 18 Piercing . | . . . . . . . . . . . . . . . . . . . . . . . . . . . . . Sneak Attacks 37 | . . . . 5 1 4 . . 7 4 . . 2 8 . . 1 . . 1 . . . . . . 2 2 Combat Hostiles . | . . . . . . . . . . . . . . . . . . . . . . . . . . . . . Follow-up Attacks . | . . . . . . . . . . . . . . . . . . . . . . . . . . . . . Damage Inflicted 13197 | 114 953 271 1758 1961 331 1502 914 79 632 482 675 272 160 572 . 64 193 . 450 92 . 130 . . 177 31 1073 311 Guns 2092 | 114 478 . 425 1075 . . . . . . . . . . . . . . . . . . . . . . . . Cannons 2257 | . . . 1216 . . . 27 . 122 92 91 30 . . . 29 . . . . . . . . 177 . 473 . Explosions 3732 | . 475 271 . 381 156 95 843 . . . 584 242 . . . 35 . . 450 . . . . . . . 200 . Melee 5065 | . . . 117 505 175 1407 44 79 510 390 . . 160 572 . . 193 . . 92 . 130 . . . 31 400 260 Ramming 51 | . . . . . . . . . . . . . . . . . . . . . . . . . . . . 51 Kinetic 1173 | 114 478 . 425 . 156 . . . . . . . . . . . . . . . . . . . . . . . Thermal 2690 | . . . 1216 381 . . 79 . 122 92 91 30 . . . 29 . . . . . . . . 177 . 473 . Explosive 2031 | . 475 271 . . . . 366 . . . 584 . . . . . . . 335 . . . . . . . . . Electromagnetic 2187 | . . . . 1075 . 95 425 . . . . 242 . . . 35 . . 115 . . . . . . . 200 . Impact 388 | . . . 117 271 . . . . . . . . . . . . . . . . . . . . . . . . Slashing 4677 | . . . . 234 175 1407 44 79 510 390 . . 160 572 . . 193 . . 92 . 130 . . . 31 400 260 Piercing . | . . . . . . . . . . . . . . . . . . . . . . . . . . . . . Highest Corruption 24 | . . . . 8 . . . . . . . . 1 1 3 3 3 3 . . . 8 8 8 8 8 17 24 Average Corruption 4 | . . . . 3 . . . . . . . . 1 1 1 3 3 3 . . . 2 8 8 8 8 5 21 Corruption Purged . | . . . . . . . . . . . . . . . . . . . . . . . . . . . . . Corruption Blocked . | . . . . . . . . . . . . . . . . . . . . . . . . . . . . . Effects 139 | . . . . 12 . . . . . . . . . . 11 18 12 1 . . . 15 6 10 . 1 28 25 Message Errors 37 | . . . . 3 . . . . . . . . . . 3 5 3 1 . . . 3 1 5 . . 4 9 Matter Fused 28 | . . . . 1 . . . . . . . . . . 3 1 1 . . . . 4 2 1 . 1 9 5 Heat Flow Errors 11 | . . . . . . . . . . . . . . . 2 . 4 . . . . 2 . . . . 2 1 Energy Discharges 19 | . . . . 1 . . . . . . . . . . . 6 2 . . . . 2 1 . . . 6 1 Parts Rejected 1 | . . . . . . . . . . . . . . . . . . . . . . . 1 . . . . . Parts Fused 2 | . . . . 1 . . . . . . . . . . 1 . . . . . . . . . . . . . Data Loss (minor) 13 | . . . . 2 . . . . . . . . . . 2 2 1 . . . . 1 . 1 . . 2 2 Data Loss (major) 10 | . . . . 3 . . . . . . . . . . . 1 1 . . . . 2 . . . . 3 . Misfires 6 | . . . . 1 . . . . . . . . . . . 1 . . . . . 1 . 1 . . 1 1 Alerts 6 | . . . . . . . . . . . . . . . . 2 . . . . . . 1 1 . . . 2 Misdirections 5 | . . . . . . . . . . . . . . . . . . . . . . . . . . . 1 4 Weapon Failures 1 | . . . . . . . . . . . . . . . . . . . . . . . . 1 . . . . Overload Shots 21 | . . . 21 . . . . . . . . . . . . . . . . . . . . . . . . . Effects 4 | . . . 4 . . . . . . . . . . . . . . . . . . . . . . . . . Energy Bleed 2 | . . . 2 . . . . . . . . . . . . . . . . . . . . . . . . . Heat Surge 2 | . . . 2 . . . . . . . . . . . . . . . . . . . . . . . . . Overflow Damage 1413 | . 13 . . 152 64 602 63 9 15 177 43 . 54 58 . . 93 . . . . . . . . . 54 16 Projectiles 12 | . . . . . . . . . . 12 . . . . . . . . . . . . . . . . . . Explosions 111 | . 13 . . 6 4 10 33 . . . 43 . . . . . . . . . . . . . . . 2 . Melee 1290 | . . . . 146 60 592 30 9 15 165 . . 54 58 . . 93 . . . . . . . . . 52 16 Knockbacks 1 | . . . . . . . . . . . . . . . . . . . . . . . . . . . . 1 Impact 1 | . . . . . . . . . . . . . . . . . . . . . . . . . . . . 1 Kinetic . | . . . . . . . . . . . . . . . . . . . . . . . . . . . . . Secondary . | . . . . . . . . . . . . . . . . . . . . . . . . . . . . . Self-Inflicted Damage 204 | . . . . . . . . . . . 23 . . . . . 59 . 22 . . . . . . . 77 23 Shots 13 | . . . . . . . . . . . 1 . . . . . 1 . 1 . . . . . . . 10 . Rammed 11 | . . . . . . . . . . . . . . . . . . . . . . . . . . . . 11 Targets Rammed 11 | . . . . . . . . . . . . . . . . . . . . . . . . . . . . 11 Kicked . | . . . . . . . . . . . . . . . . . . . . . . . . . . . . . Crushed . | . . . . . . . . . . . . . . . . . . . . . . . . . . . . . Highest Temperature 472 | . 6 . 434 355 472 36 90 128 160 96 84 60 96 28 202 64 207 . . 57 . 231 117 56 84 61 216 200 Average Temperature 64 | . 3 . 140 98 196 16 27 39 83 35 29 26 33 17 62 31 54 . . 25 . 43 54 26 39 28 70 97 Received Heat Transfer 981 | . 36 . 138 261 . . . 9 . 9 36 . 18 . 63 . . . . 9 . 39 9 . . . 63 291 Effects 3 | . . . 3 . . . . . . . . . . . . . . . . . . . . . . . . . Energy Bleed 1 | . . . 1 . . . . . . . . . . . . . . . . . . . . . . . . . Interference 1 | . . . 1 . . . . . . . . . . . . . . . . . . . . . . . . . Matter Decay 1 | . . . 1 . . . . . . . . . . . . . . . . . . . . . . . . . Siege Activations . | . . . . . . . . . . . . . . . . . . . . . . . . . . . . . Martial Activations . | . . . . . . . . . . . . . . . . . . . . . . . . . . . . . Shielding Activations . | . . . . . . . . . . . . . . . . . . . . . . . . . . . . . Robots Disrupted 1 | . . . . 1 . . . . . . . . . . . . . . . . . . . . . . . . Combat Hostiles 1 | . . . . 1 . . . . . . . . . . . . . . . . . . . . . . . . Robots Corrupted 4 | . . . . 2 . 1 1 . . . . . . . . . . . . . . . . . . . . . Combat Hostiles 2 | . . . . 1 . . 1 . . . . . . . . . . . . . . . . . . . . . Parts Fried 13 | . . . . 8 . 3 . . . . . 1 . . . . . . . . . . . . . . . 1 Impact Corruptions 4 | . . . . 3 . . . . . . . . . . . . . . . . . . . . . . . 1 Robots Melted 1 | . . . 1 . . . . . . . . . . . . . . . . . . . . . . . . . Combat Hostiles 1 | . . . 1 . . . . . . . . . . . . . . . . . . . . . . . . . Parts Melted 6 | . . . 3 1 . . . . . . 1 . . . . . . . . . . . . . . . 1 . Heat Transferred 1467 | . . . . 400 . . 87 . 148 111 111 37 . . . 37 . . . . . . . . 129 . 407 . Parts Sabotaged . | . . . . . . . . . . . . . . . . . . . . . . . . . . . . . Parts Stolen . | . . . . . . . . . . . . . . . . . . . . . . . . . . . . . Parts Stripped . | . . . . . . . . . . . . . . . . . . . . . . . . . . . . . Power Chain Reactions 5 | . . . . 4 . . 1 . . . . . . . . . . . . . . . . . . . . . Alert | -11 -10 -10 -10 -8 -7 -7 -7 -6 -6 -6 -6 -6 -5 -5 -5 -5 -5 -5 -4 -4 -4 -4 -4 -4 -4 -3 -3 -3 ------- Run | Yrd Mat Min Sub Mat Fac Low Low Fac Was Fac Low Low Fac Was Fac Upp Upp War Pro Fac Was Fac Upp Upp Zhi Pro Res Tes Maximum Alert Level 1 | . . . . . . . . . . . . . . . . . . . . 1 . 1 . . . . 1 . Low Security (%) 88 | 100 100 100 . 100 100 . . 100 100 100 . . 100 100 100 . . . . 90 100 94 . . . . 17 100 Level 1 11 | . . . . . . . . . . . . . . . . . . . . 9 . 5 . . . . 82 . Level 2 . | . . . . . . . . . . . . . . . . . . . . . . . . . . . . . Level 3 . | . . . . . . . . . . . . . . . . . . . . . . . . . . . . . Level 4 . | . . . . . . . . . . . . . . . . . . . . . . . . . . . . . Level 5 . | . . . . . . . . . . . . . . . . . . . . . . . . . . . . . High Security . | . . . . . . . . . . . . . . . . . . . . . . . . . . . . . Max Security . | . . . . . . . . . . . . . . . . . . . . . . . . . . . . . Peak Influence 300 | 10 147 82 . 147 124 . . 23 33 40 . . 30 56 120 . . . . 236 . 223 . . . . 300 76 Initial 300 | . . . . 12 60 . . . . . . . . 5 14 . . . . 227 . . . . . . 300 76 Average 53 | 1 50 18 . 63 36 . . 3 6 8 . . 1 21 29 . . . . 62 . 21 . . . . 224 17 Influence Increases 4746 | 20 339 160 34 581 335 . 90 65 33 251 250 78 148 90 359 75 5 . 164 348 . 408 15 . 5 5 790 98 Destroy 0b10 Robot/C 1160 | . 200 120 20 240 40 . 80 . . 20 120 20 . . . 20 . . 100 . . 20 . . . . 140 20 Destroy 0b10 Robot/NC 230 | 20 35 5 . 75 15 . . 5 . 20 . . 10 . . . 5 . 5 5 . . . . 5 5 15 5 Destroy Leader 258 | . 40 20 10 52 14 . 10 2 . 10 10 10 . . . 10 . . 20 . . 10 . . . . 30 10 Allied During Kill 51 | . . . 4 . 5 . . . . . . 3 . . . . . . 39 . . . . . . . . . Successful Hack 360 | . 26 . . 20 59 . . 34 . 55 . . 26 . 64 . . . . 27 . 7 . . . . 24 18 Disable Machine 120 | . . . . 30 . . . . . . . . . . 15 . . . . 15 . . . . . . 45 15 Destroy Structure 692 | . 38 15 . 29 37 . . 24 33 26 . . 52 90 70 . . . . 76 . 116 . . . . 86 . Advance Influence 450 | . . . . . . . . . . . . . . . . . . . . 150 . . . . . . 300 . Partial Spotted 210 | . . . . . 30 . . . . 45 . . 15 . 30 . . . . 30 . 30 . . . . 30 . Lose Combat Pursuer 1215 | . . . . 135 135 . . . . 75 120 45 45 . 180 45 . . . 45 . 225 15 . . . 120 30 Influence Decreases 4726 | 20 339 134 36 470 356 114 90 65 33 219 241 119 133 85 277 177 5 . 40 472 . 197 209 17 5 5 654 214 Entered New Map 411 | . . . 14 12 75 43 . . . . 13 9 . 10 6 39 . . . 47 . . 79 4 . . . 60 Time Decay 3952 | 20 339 134 22 408 271 71 90 65 33 219 228 90 124 75 261 108 5 . 40 361 . 197 110 13 5 5 534 124 Lost Part 210 | . . . . 50 . . . . . . . . . . 10 . . . . . . . . . . . 120 30 Lost Ally 82 | . . . . . 10 . . . . . . 20 . . . 30 . . . 2 . . 20 . . . . . Purge Threat 71 | . . . . . . . . . . . . . 9 . . . . . . 62 . . . . . . . . Squads Dispatched 63 | . 1 1 . 3 6 . . 5 . 6 . . 6 . 8 . . . . 6 . 10 . . . . 8 3 Investigation 30 | . . . . 1 4 . . 3 . 4 . . 2 . 6 . . . . 3 . 5 . . . . 2 . Extermination 24 | . . . . . 2 . . 1 . 2 . . 3 . 2 . . . . 3 . 5 . . . . 5 1 Reinforcement 8 | . 1 . . 2 . . . 1 . . . . 1 . . . . . . . . . . . . . 1 2 Assault 1 | . . 1 . . . . . . . . . . . . . . . . . . . . . . . . . . Garrison . | . . . . . . . . . . . . . . . . . . . . . . . . . . . . . Intercept . | . . . . . . . . . . . . . . . . . . . . . . . . . . . . . Searches Triggered . | . . . . . . . . . . . . . . . . . . . . . . . . . . . . . Construction Impeded 3 | . . . . 2 . . . 1 . . . . . . . . . . . . . . . . . . . . Haulers Reinforced 1 | . . . . . . . . . . . . . . . . . . . . . . . . . . . . 1 Active Scanning Responses . | . . . . . . . . . . . . . . . . . . . . . . . . . . . . . Cargo Convoy Interrupts . | . . . . . . . . . . . . . . . . . . . . . . . . . . . . . Stealth | -11 -10 -10 -10 -8 -7 -7 -7 -6 -6 -6 -6 -6 -5 -5 -5 -5 -5 -5 -4 -4 -4 -4 -4 -4 -4 -3 -3 -3 --------- Run | Yrd Mat Min Sub Mat Fac Low Low Fac Was Fac Low Low Fac Was Fac Upp Upp War Pro Fac Was Fac Upp Upp Zhi Pro Res Tes Distress Signals 17 | . 2 . . 1 3 . . . . 2 . . 1 . 1 . . . . 2 . 3 . . . . 2 . Communications Jammed . | . . . . . . . . . . . . . . . . . . . . . . . . . . . . . Distress Signals . | . . . . . . . . . . . . . . . . . . . . . . . . . . . . . Times Spotted 255 | . 14 6 10 26 16 1 15 6 6 12 25 5 9 . 13 3 . . 2 9 7 25 1 2 . 2 23 17 Peak Tracking Total 11 | . 7 3 2 8 3 2 6 3 5 4 9 3 5 . 7 3 . . 1 4 6 11 1 3 . 2 5 11 Tactical Retreats 50 | . . . . 4 8 2 4 . 1 3 5 1 3 . 4 1 . . . 2 1 4 1 . . . 5 1 Traps | -11 -10 -10 -10 -8 -7 -7 -7 -6 -6 -6 -6 -6 -5 -5 -5 -5 -5 -5 -4 -4 -4 -4 -4 -4 -4 -3 -3 -3 ------- Run | Yrd Mat Min Sub Mat Fac Low Low Fac Was Fac Low Low Fac Was Fac Upp Upp War Pro Fac Was Fac Upp Upp Zhi Pro Res Tes Traps Triggered 14 | . . . . 2 . . . 1 . . . . 2 . 3 . . . . 3 . 3 . . . . . . Indirectly . | . . . . . . . . . . . . . . . . . . . . . . . . . . . . . Trap Hack Attempts . | . . . . . . . . . . . . . . . . . . . . . . . . . . . . . Triggered . | . . . . . . . . . . . . . . . . . . . . . . . . . . . . . Disarmed . | . . . . . . . . . . . . . . . . . . . . . . . . . . . . . Reprogrammed . | . . . . . . . . . . . . . . . . . . . . . . . . . . . . . Reused . | . . . . . . . . . . . . . . . . . . . . . . . . . . . . . Traps Extracted . | . . . . . . . . . . . . . . . . . . . . . . . . . . . . . Installed . | . . . . . . . . . . . . . . . . . . . . . . . . . . . . . Triggered . | . . . . . . . . . . . . . . . . . . . . . . . . . . . . . Machines | -11 -10 -10 -10 -8 -7 -7 -7 -6 -6 -6 -6 -6 -5 -5 -5 -5 -5 -5 -4 -4 -4 -4 -4 -4 -4 -3 -3 -3 ---------- Run | Yrd Mat Min Sub Mat Fac Low Low Fac Was Fac Low Low Fac Was Fac Upp Upp War Pro Fac Was Fac Upp Upp Zhi Pro Res Tes Machines Disabled 11 | . . . 1 2 . . . . . . . . . . 1 . . 1 . 1 . . . . . . 3 2 Max in Single Turn 1 | . . . 1 1 . . . . . . . . . . 1 . . 1 . 1 . . . . . . 1 1 Garrison Access 9 | . . . . 1 1 . . . . 2 . . . . 2 . . . . 1 . . . . . . 2 . Machines Repaired . | . . . . . . . . . . . . . . . . . . . . . . . . . . . . . Machines Dismantled . | . . . . . . . . . . . . . . . . . . . . . . . . . . . . . Machines Sabotaged . | . . . . . . . . . . . . . . . . . . . . . . . . . . . . . Overloaded Fab Kills . | . . . . . . . . . . . . . . . . . . . . . . . . . . . . . Hacking | -11 -10 -10 -10 -8 -7 -7 -7 -6 -6 -6 -6 -6 -5 -5 -5 -5 -5 -5 -4 -4 -4 -4 -4 -4 -4 -3 -3 -3 --------- Run | Yrd Mat Min Sub Mat Fac Low Low Fac Was Fac Low Low Fac Was Fac Upp Upp War Pro Fac Was Fac Upp Upp Zhi Pro Res Tes Machines Accessed 147 | . 9 1 4 10 16 . 1 9 . 18 . 1 15 . 12 2 . 3 . 13 . 15 . . 4 . 11 3 Terminals 70 | . 7 . . 7 7 . . 3 . 8 . . 9 . 4 . . . . 10 . 7 . . . . 6 2 Fabricators 21 | . . . . . 4 . . 3 . 4 . . 1 . 3 . . . . 1 . 4 . . . . 1 . Repair Stations 7 | . . . . . 1 . . . . 1 . . 2 . 1 . . . . . . 1 . . . . . 1 Recycling Units 19 | . 2 . . 1 3 . . 1 . 2 . . 3 . 2 . . . . 1 . 2 . . . . 2 . Scanalyzers 5 | . . . . 1 . . . 2 . 1 . . . . . . . . . . . 1 . . . . . . Garrison Access 9 | . . . . 1 1 . . . . 2 . . . . 2 . . . . 1 . . . . . . 2 . Total Hacks 403 | . 29 1 15 23 34 . 1 26 . 36 . 1 33 . 33 7 . 7 . 54 . 53 . . 17 . 28 5 Successful 288 | . 10 1 15 14 26 . 1 22 . 22 . 1 25 . 24 7 . 7 . 35 . 42 . . 17 . 15 4 Failed 113 | . 19 . . 8 8 . . 4 . 14 . . 7 . 9 . . . . 19 . 11 . . . . 13 1 Catastrophic 18 | . 4 . . . 1 . . . . 2 . . 1 . 4 . . . . 2 . . . . . . 4 . Database Lockouts 2 | . . . . 1 . . . . . . . . 1 . . . . . . . . . . . . . . . Manual 194 | . 16 . . 14 18 . . 9 . 17 . . 17 . 16 . . . . 34 . 33 . . . . 18 2 Terminals 207 | . 23 . . 18 18 . . 9 . 15 . . 17 . 13 . . . . 39 . 31 . . . . 21 3 Fabricators 75 | . . . . . 10 . . 9 . 8 . . 7 . 10 . . . . 13 . 15 . . . . 3 . Repair Stations 18 | . . . . . 2 . . . . 1 . . 6 . 4 . . . . . . 3 . . . . . 2 Recycling Units 26 | . 6 . . 2 3 . . 1 . 4 . . 3 . 2 . . . . 1 . 2 . . . . 2 . Scanalyzers 16 | . . . . 2 . . . 7 . 5 . . . . . . . . . . . 2 . . . . . . Garrison Access 12 | . . . . 1 1 . . . . 3 . . . . 4 . . . . 1 . . . . . . 2 . Terminal Hacks 130 | . 6 1 15 6 7 . 1 5 . 4 . 1 6 . 6 7 . 7 . 15 . 18 . . 17 . 7 1 Record 23 | . . . 12 . . . . . . . . . . . . 6 . . . . . . . . 5 . . . Part Schematic 20 | . 1 . . 1 1 . . 2 . . . . 1 . 2 . . . . 5 . 2 . . 4 . 1 . Robot Analysis 6 | . 2 . . . . . . . . . . . . . . . . . . . . . . . 4 . . . Prototype ID Bank 9 | . . . . . . . . . . . . . . . . . . 5 . . . . . . 4 . . . Open Door 7 | . . 1 1 . . . 1 . . . . 1 . . . 1 . 2 . . . . . . . . . . Level Access Points 2 | . . . . 1 . . . . . . . . . . . . . . . . . . . . . . . 1 Branch Access Points 8 | . . . . 1 1 . . . . 1 . . . . 2 . . . . 1 . 1 . . . . 1 . Machine Index 1 | . . . . . . . . . . . . . . . . . . . . . . 1 . . . . . . Terminal Index 9 | . 1 . . . 1 . . 1 . 1 . . . . 1 . . . . 1 . 1 . . . . 2 . Fabricator Index 3 | . . . . . . . . . . 1 . . . . . . . . . 1 . . . . . . 1 . Unreport Threat 2 | . . . . . . . . . . . . . 1 . . . . . . 1 . . . . . . . . Locate Traps 15 | . 2 . . 3 1 . . 1 . 1 . . 1 . . . . . . 3 . 3 . . . . . . Recall Investigation 1 | . . . . . . . . . . . . . . . . . . . . . . 1 . . . . . . Recall Extermination 13 | . . . . . 2 . . 1 . . . . 2 . 1 . . . . 2 . 4 . . . . 1 . Zone Layout 9 | . . . . . 1 . . . . . . . 1 . . . . . . 1 . 5 . . . . 1 . Proto ID Catalog 1 | . . . 1 . . . . . . . . . . . . . . . . . . . . . . . . . Release Object 1 | . . . 1 . . . . . . . . . . . . . . . . . . . . . . . . . Fabricator Hacks 46 | . . . . . 5 . . 4 . 3 . . 5 . 5 . . . . 11 . 11 . . . . 2 . Network Status 3 | . . . . . 1 . . 1 . . . . . . 1 . . . . . . . . . . . . . Load Schematic 30 | . . . . . 4 . . 3 . 3 . . 3 . 3 . . . . 6 . 7 . . . . 1 . Build 13 | . . . . . . . . . . . . . 2 . 1 . . . . 5 . 4 . . . . 1 . Repair Station Hacks 17 | . . . . . 2 . . . . 1 . . 6 . 4 . . . . . . 2 . . . . . 2 Scan Component 9 | . . . . . 1 . . . . 1 . . 3 . 2 . . . . . . 1 . . . . . 1 Repair 8 | . . . . . 1 . . . . . . . 3 . 2 . . . . . . 1 . . . . . 1 Recycling Unit Hacks 17 | . 1 . . 1 3 . . 1 . 1 . . 3 . 2 . . . . 1 . 2 . . . . 2 . Retrieve Components 17 | . 1 . . 1 3 . . 1 . 1 . . 3 . 2 . . . . 1 . 2 . . . . 2 . Scanalyzer 14 | . . . . 2 . . . 6 . 4 . . . . . . . . . . . 2 . . . . . . Insert Component 7 | . . . . 1 . . . 3 . 2 . . . . . . . . . . . 1 . . . . . . Analyze 7 | . . . . 1 . . . 3 . 2 . . . . . . . . . . . 1 . . . . . . Garrison Access Hacks 9 | . . . . 1 1 . . . . 2 . . . . 2 . . . . 1 . . . . . . 2 . Seal Access 9 | . . . . 1 1 . . . . 2 . . . . 2 . . . . 1 . . . . . . 2 . Unauthorized Hacks 55 | . 3 . . 4 8 . . 6 . 7 . . 5 . 5 . . . . 7 . 7 . . . . 2 1 Terminals 32 | . 3 . . 4 4 . . 3 . 4 . . 3 . 1 . . . . 5 . 3 . . . . 1 1 Assimilate 10 | . . . . . 2 . . . . 4 . . . . . . . . . 4 . . . . . . . . Botnet 16 | . 2 . . 3 1 . . 2 . . . . 2 . 1 . . . . 1 . 2 . . . . 1 1 Operators 6 | . 1 . . 1 1 . . 1 . . . . 1 . . . . . . . . 1 . . . . . . Fabricators 23 | . . . . . 4 . . 3 . 3 . . 2 . 4 . . . . 2 . 4 . . . . 1 . Prioritize 5 | . . . . . . . . . . . . . 1 . 1 . . . . 1 . 1 . . . . 1 . Fabnet 1 | . . . . . . . . . . 1 . . . . . . . . . . . . . . . . . . Recompile 17 | . . . . . 4 . . 3 . 2 . . 1 . 3 . . . . 1 . 3 . . . . . . Repair Stations . | . . . . . . . . . . . . . . . . . . . . . . . . . . . . . Recycling Units . | . . . . . . . . . . . . . . . . . . . . . . . . . . . . . Scanalyzers . | . . . . . . . . . . . . . . . . . . . . . . . . . . . . . Garrison Access . | . . . . . . . . . . . . . . . . . . . . . . . . . . . . . Data Cores Recovered 2 | . . . . 1 . . . . . 1 . . . . . . . . . . . . . . . . . . Used . | . . . . . . . . . . . . . . . . . . . . . . . . . . . . . Hacking Detections 91 | . 8 . . 9 12 . . 5 . 12 . . 9 . 8 . . . . 11 . 6 . . . . 8 3 Full Trace Events 8 | . . . . . . . . . . 2 . . 1 . 1 . . . . 1 . 1 . . . . 2 . Feedback Events 2 | . . . . . . . . . . . . . 1 . . . . . . . . 1 . . . . . . Corruption 1 | . . . . . . . . . . . . . 1 . . . . . . . . . . . . . . . Hackware Fried 1 | . . . . . . . . . . . . . . . . . . . . . . 1 . . . . . . Feedback Blocked 1 | . . . . . . . . . . . . . . . . . . . . . . . . . . . 1 . Robot Schematics Acquired . | . . . . . . . . . . . . . . . . . . . . . . . . . . . . . Robots Built . | . . . . . . . . . . . . . . . . . . . . . . . . . . . . . Authchips . | . . . . . . . . . . . . . . . . . . . . . . . . . . . . . Time . | . . . . . . . . . . . . . . . . . . . . . . . . . . . . . Total Robot Build Rating . | . . . . . . . . . . . . . . . . . . . . . . . . . . . . . Part Schematics Acquired 26 | . 1 . . 2 1 . . 4 . 2 . . 1 . 2 . . . . 5 . 3 . . 4 . 1 . Parts Built 15 | . . . . . . . . . . . . . 2 . 2 . . . . 5 . 5 . . . . 1 . Authchips 12 | . . . . . . . . . . . . . 2 . . . . . . 5 . 4 . . . . 1 . Time 665 | . . . . . . . . . . . . . 79 . 128 . . . . 197 . 197 . . . . 64 . Total Part Build Rating 96 | . . . . . . . . . . . . . 12 . 16 . . . . 28 . 32 . . . . 8 . Parts Repaired 8 | . . . . . 1 . . . . . . . 3 . 2 . . . . . . 1 . . . . . 1 Time 295 | . . . . . 12 . . . . . . . 122 . 50 . . . . . . 16 . . . . . 95 Parts Recycled . | . . . . . . . . . . . . . . . . . . . . . . . . . . . . . Recycled Matter . | . . . . . . . . . . . . . . . . . . . . . . . . . . . . . Retrieved Matter . | . . . . . . . . . . . . . . . . . . . . . . . . . . . . . Retrieved Components 45 | . . . . 9 6 . . 2 . 3 . . 9 . 4 . . . . 1 . 5 . . . . 6 . Parts Scanalyzed 6 | . . . . 1 . . . 2 . 2 . . . . . . . . . . . 1 . . . . . . Part Schematics Acquired 6 | . . . . 1 . . . 2 . 2 . . . . . . . . . . . 1 . . . . . . Parts Damaged . | . . . . . . . . . . . . . . . . . . . . . . . . . . . . . Bothacking | -11 -10 -10 -10 -8 -7 -7 -7 -6 -6 -6 -6 -6 -5 -5 -5 -5 -5 -5 -4 -4 -4 -4 -4 -4 -4 -3 -3 -3 ------------ Run | Yrd Mat Min Sub Mat Fac Low Low Fac Was Fac Low Low Fac Was Fac Upp Upp War Pro Fac Was Fac Upp Upp Zhi Pro Res Tes Used RIF Installer . | . . . . . . . . . . . . . . . . . . . . . . . . . . . . . Robots Hacked 3 | . . . . . . . . . . . . . . . . . . 1 . 1 . . 1 . . . . . Non-combat . | . . . . . . . . . . . . . . . . . . . . . . . . . . . . . Combat 3 | . . . . . . . . . . . . . . . . . . 1 . 1 . . 1 . . . . . Robot Hacks Applied . | . . . . . . . . . . . . . . . . . . . . . . . . . . . . . Relay Couplers Released . | . . . . . . . . . . . . . . . . . . . . . . . . . . . . . Fabnet Peak Effective % 3 | . . . . . . . . . . . . . 3 3 3 3 3 3 1 1 1 1 1 1 1 . . . Autooverrided 3 | . . . . . . . . . . . . . . . . . . 1 . 1 . . 1 . . . . . Robots Rewired 5 | . . . . . . . . . . . . . . . . . . 5 . . . . . . . . . . Allies Hacked 1 | . . . . . . . . . . 1 . . . . . . . . . . . . . . . . . . Hacks Repelled . | . . . . . . . . . . . . . . . . . . . . . . . . . . . . . Allies | -11 -10 -10 -10 -8 -7 -7 -7 -6 -6 -6 -6 -6 -5 -5 -5 -5 -5 -5 -4 -4 -4 -4 -4 -4 -4 -3 -3 -3 -------- Run | Yrd Mat Min Sub Mat Fac Low Low Fac Was Fac Low Low Fac Was Fac Upp Upp War Pro Fac Was Fac Upp Upp Zhi Pro Res Tes Total Allies 55 | . . 1 . . 2 . . . 19 3 . . . 18 . . . 6 . 5 . . 1 . . . . . Largest Group 19 | . . 1 . . 2 1 . . 19 3 . . . 18 . . . 6 5 3 1 . . . . . . . Highest-Rated Group 702 | . . 31 . . 36 26 . . 702 78 . . . 638 . . . 285 256 120 45 . . . . . . . Highest-Rated Ally 64 | . . 31 . . 26 26 . . 50 26 . . . 50 . . . 64 64 49 45 . . . . . . . Total Orders 11 | . . . 5 . 1 1 . . . 3 . 1 . . . . . . . . . . . . . . . . STAY 4 | . . . 1 . . 1 . . . 2 . . . . . . . . . . . . . . . . . . FOLLOW 1 | . . . . . . . . . . 1 . . . . . . . . . . . . . . . . . . EXPLORE 3 | . . . 3 . . . . . . . . . . . . . . . . . . . . . . . . . RETURN 3 | . . . 1 . 1 . . . . . . 1 . . . . . . . . . . . . . . . . Ally Attacks 303 | . . 5 6 . 13 . . . 84 23 . 13 . 134 . 10 . 3 8 3 . . 1 . . . . . Total Damage 8527 | . . 107 43 . 23 . . . 3464 95 . 86 . 4394 . 62 . 18 124 72 . . 39 . . . . . Kills 25 | . . . 1 . . . . . 10 . . 1 . 11 . . . . 2 . . . . . . . . . Allies Corrupted 1 | . . . . . . 1 . . . . . . . . . . . . . . . . . . . . . . Allies Melted . | . . . . . . . . . . . . . . . . . . . . . . . . . . . . . Intel | -11 -10 -10 -10 -8 -7 -7 -7 -6 -6 -6 -6 -6 -5 -5 -5 -5 -5 -5 -4 -4 -4 -4 -4 -4 -4 -3 -3 -3 ------- Run | Yrd Mat Min Sub Mat Fac Low Low Fac Was Fac Low Low Fac Was Fac Upp Upp War Pro Fac Was Fac Upp Upp Zhi Pro Res Tes Active Infowar (turns) 19951 | 8 1113 754 2045 121 715 709 1031 384 183 1029 819 774 1070 230 946 933 557 617 261 1051 115 1589 220 368 277 80 1517 435 Optics 9894 | . . . . 121 . . . . . . . . 577 230 946 933 557 617 261 1051 115 1589 220 368 277 80 1517 435 Sensors 14743 | . . . . . 715 709 1031 384 183 1029 819 774 1041 230 941 904 557 608 249 900 115 1475 220 368 3 80 1408 . Seismic 3920 | 8 1113 754 2045 . . . . . . . . . . . . . . . . . . . . . . . . . Robot Analysis Total 6 | . 2 . . . . . . . . . . . . . . . . . . . . . . . 4 . . . Derelict Logs Recovered 17 | . . 2 1 . . 3 2 . . . 3 1 . . . 1 2 . 1 . . . . 1 . . . . Drone Launches 20 | . . . 5 . 3 . . . . 6 . 4 . . . 2 . . . . . . . . . . . . Drone Recoveries 17 | . . . 5 . 3 . . . . 6 . 3 . . . . . . . . . . . . . . . . Exploration | -11 -10 -10 -10 -8 -7 -7 -7 -6 -6 -6 -6 -6 -5 -5 -5 -5 -5 -5 -4 -4 -4 -4 -4 -4 -4 -3 -3 -3 ------------- Run | Yrd Mat Min Sub Mat Fac Low Low Fac Was Fac Low Low Fac Was Fac Upp Upp War Pro Fac Was Fac Upp Upp Zhi Pro Res Tes Turns Passed 21715 | 98 1113 754 2334 1290 753 710 1047 384 183 1066 920 792 1075 230 946 933 557 617 261 1051 115 1589 220 368 277 80 1517 435 Spaces Moved 24091 | 49 831 576 1641 809 1263 1078 1504 553 261 1684 996 1138 1165 188 1196 1133 587 723 403 1302 208 1840 414 451 258 102 1469 269 Core 113 | 1 . . . . . . 29 . . . . . . . . . . . . . . . . . . . . 83 Treads . | . . . . . . . . . . . . . . . . . . . . . . . . . . . . . Legs . | . . . . . . . . . . . . . . . . . . . . . . . . . . . . . Wheels 3784 | 48 831 576 1641 688 . . . . . . . . . . . . . . . . . . . . . . . . Hover 20074 | . . . . 1 1263 1078 1475 553 261 1684 996 1138 1165 188 1196 1133 587 723 403 1302 208 1840 414 451 258 102 1469 186 Flight 120 | . . . . 120 . . . . . . . . . . . . . . . . . . . . . . . . Fastest Speed 37 | 50 90 115 105 80 42 42 42 38 42 38 56 63 63 63 63 63 63 49 49 49 49 49 49 49 49 49 37 50 Average Speed 64 | 90 109 115 116 99 44 42 52 39 42 47 57 63 63 63 63 63 63 60 49 49 49 49 49 66 84 49 73 92 Slowest Speed 600 | 100 115 115 145 241 102 102 600 42 42 56 120 63 63 63 63 63 63 63 107 49 49 49 49 107 107 49 189 440 Overloaded Moves 96 | . . . . . . . . . . . . . . . . . . . . . . . . . . . 89 7 Propulsion Burnouts . | . . . . . . . . . . . . . . . . . . . . . . . . . . . . . Robots Hopped . | . . . . . . . . . . . . . . . . . . . . . . . . . . . . . Potential Cave-ins 2 | . . . . . . . . . . . . . . . . . . . . . . . . . . . 2 . Cave-ins Triggered . | . . . . . . . . . . . . . . . . . . . . . . . . . . . . . Teleports 1 | . . . . . . . . . . . . . . . . . . . . . . . . . . . 1 . Exploration Rate (%) 63 | 4 99 98 96 56 32 99 99 22 90 35 92 98 38 88 36 98 71 82 72 27 86 54 58 69 62 22 35 36 Regions Visited 28 Branch Regions 15 Pre-discovered Areas 6 | . . . 1 . . . 1 . . . . . . . . . . . . . . . . 1 3 . . . Known Exits Taken 18 | . . . . 1 1 1 1 . . 1 1 1 . . 1 1 1 1 1 . . 1 1 1 1 1 1 . Unknown Exits Taken 4 | 1 1 1 1 . . . . . . . . . . . . . . . . . . . . . . . . . Scrap Searched 45 | . . 1 10 . . 4 7 . . . 2 3 . . . 5 3 . 1 . . . 2 5 . 2 . . Spaces Dug 305 | . 9 . 2 3 24 7 4 18 . 23 10 7 20 3 26 8 27 1 . 32 . 42 3 2 . 1 33 . Terrain Destroyed 765 | . 44 15 8 24 35 12 88 29 . 26 154 8 30 4 41 13 28 1 24 44 . 69 6 6 . 9 47 . Melee 193 | . . . 1 3 24 7 2 15 . 22 3 3 18 3 22 4 1 1 . 16 . 26 . . . 1 21 . Projectile 231 | . . . 7 . . 5 6 14 . 4 29 5 12 1 19 9 3 . . 28 . 43 6 6 . 8 26 . AOE 341 | . 44 15 . 21 11 . 80 . . . 122 . . . . . 24 . 24 . . . . . . . . . Terrain Rammed . | . . . . . . . . . . . . . . . . . . . . . . . . . . . . . Walls Destroyed . | . . . . . . . . . . . . . . . . . . . . . . . . . . . . . Machines Disabled . | . . . . . . . . . . . . . . . . . . . . . . . . . . . . . Actions | -11 -10 -10 -10 -8 -7 -7 -7 -6 -6 -6 -6 -6 -5 -5 -5 -5 -5 -5 -4 -4 -4 -4 -4 -4 -4 -3 -3 -3 --------- Run | Yrd Mat Min Sub Mat Fac Low Low Fac Was Fac Low Low Fac Was Fac Upp Upp War Pro Fac Was Fac Upp Upp Zhi Pro Res Tes Total 29035 | 77 960 667 1973 1206 1405 1278 1704 679 318 1895 1295 1197 1459 278 1336 1332 762 899 454 1661 220 2432 424 510 310 120 1768 416 Wait 3498 | 3 47 86 218 225 68 156 143 76 44 137 248 41 239 72 79 179 164 122 41 281 13 495 4 50 . 9 160 98 Move 24066 | 48 830 575 1640 808 1262 1077 1503 553 260 1683 995 1137 1165 187 1195 1132 586 722 402 1302 207 1839 413 450 257 101 1468 269 Hop . | . . . . . . . . . . . . . . . . . . . . . . . . . . . . . Pick Up 180 | 7 20 2 9 26 10 2 . 5 1 13 . 1 7 3 7 1 1 3 . 9 . 7 . 1 33 . 8 4 Fast Attach 58 | 6 . . 1 19 4 . 1 1 . 2 . . 2 . . . . 2 . 1 . 1 1 . 5 . 9 3 Attach 55 | 1 1 . 10 9 3 . . 1 . . . . 3 . 1 . . 1 . 6 . 5 . . . . 9 5 Detach 14 | . 1 . 1 5 . . . . . 2 . . . . . . . 1 . . . . . . . . 1 3 Swap 166 | . 11 . 9 12 15 5 9 5 . 7 9 5 9 . 6 7 3 10 7 3 . 6 . 2 5 . 19 2 Drop 125 | . 10 2 9 29 14 2 4 5 1 13 . 2 2 1 6 . 1 6 . 3 . 3 . 1 5 . 5 1 Fire 489 | 12 40 2 70 44 2 10 39 15 5 8 40 8 12 1 20 9 3 1 4 28 . 43 6 6 5 8 47 1 Melee 314 | . . . 5 12 27 26 5 18 7 30 3 3 20 14 22 4 4 1 . 18 . 33 . . . 2 42 18 Ram 12 | . . . . . . . . . . . . . . . . . . . . . . . . . . . . 12 Kick . | . . . . . . . . . . . . . . . . . . . . . . . . . . . . . Crush . | . . . . . . . . . . . . . . . . . . . . . . . . . . . . . Escape Stasis 10 | . . . . . . . . . . . . . . . . . . . . 10 . . . . . . . . Rewire 47 | . . . . 17 . . . . . . . . . . . . . 30 . . . . . . . . . . Trap . | . . . . . . . . . . . . . . . . . . . . . . . . . . . . . Miscellaneous 1 | . . . 1 . . . . . . . . . . . . . . . . . . . . . . . . . Route ------- -11/Scrapyard -10/Materials (discovered 4 exits: [*Mat x3] / *Min) -10/Mines (discovered 3 exits: [*Mat x2] / *Sub) -10/Subcaves (discovered 3 exits: *Mat x2 / [*Rec]) -8/Materials (discovered 3 exits: *Fac x3) -7/Factory (discovered 2 exits: *Low x2) -7/Lower Caves -7/Lower Caves (discovered 2 exits: *Fac / *Dat) -6/Factory -6/Waste -6/Factory (discovered 3 exits: *Fac / *Low x2) -6/Lower Caves -6/Lower Caves (discovered 2 exits: *Fac / *Zio) -5/Factory -5/Waste -5/Factory (discovered 5 exits: *Fac / *Upp x2 / *Ext x2) -5/Upper Caves -5/Upper Caves -5/Warlord -4/Proximity Caves -4/Factory (discovered 4 exits: *Res / Upp x2 / Arm) -4/Waste -4/Factory (discovered 5 exits: *Res x2 / *Upp x2 / *Arm) -4/Upper Caves -4/Upper Caves (discovered 2 exits: *Res / *Zhi) -4/Zhirov -3/Proximity Caves -3/Research (discovered 2 exits: *Tes x2) -3/Testing (discovered 1 exit: Res) History --------- Turn | Location | Event 18 | -11/Scrapyard | Discovered new exit (range 16) 99 | -11/Scrapyard | Entered Materials 326 | -10/Materials | Build established: Mutant 435 | -10/Materials | Discovered new exit (range 6) 609 | -10/Materials | Discovered new exit (range 16) 752 | -10/Materials | Discovered new exit (range 16) 1007 | -10/Materials | Discovered new exit (range 7) 1212 | -10/Materials | Entered Mines 1264 | -10/Mines | Discovered new exit (range 12) 1272 | -10/Mines | Met a Derelict testing a Signal Generator 1310 | -10/Mines | Discovered new exit (range 14) 1474 | -10/Mines | Found a Scrap Suit stashed away for nefarious purposes 1497 | -10/Mines | Found the Drone Emporium 1504 | -10/Mines | Found Prototype Device 1687 | -10/Mines | Discovered new exit (range 15) 1692 | -10/Mines | Learned Materials terminal intel 1804 | -10/Mines | Learned 2 Materials zone layouts 1966 | -10/Mines | Entered Subcaves 1967 | -10/Subcaves | Approached by a straggling Scientist 2047 | -10/Subcaves | Visited 4L-MR0's lab 2092 | -10/Subcaves | Found Powered Cannon 2094 | -10/Subcaves | Attached Powered Cannon, gained temporary slot: Power 2374 | -10/Subcaves | Disturbed a concealed Subdweller 2749 | -10/Subcaves | A swath of the cavern ceiling suddenly collapsed 3069 | -10/Subcaves | Learned 4 Materials zone layouts 3105 | -10/Subcaves | Shifting Twisted Machinery released Battle Rifle 3109 | -10/Subcaves | Shifting Twisted Machinery released Sub. Monowheel 3144 | -10/Subcaves | Shifting Twisted Machinery released Sub. Power Source 3566 | -10/Subcaves | Released subatomizers from SUBCON Basin 3963 | -10/Subcaves | Visited Clippyterm 3967 | -10/Subcaves | Learned location of Extension (-5) 3991 | -10/Subcaves | A Subdweller sparked back to life 3991 | -10/Subcaves | A Subdweller sparked back to life 4001 | -10/Subcaves | Core integrity fell below 50% 4049 | -10/Subcaves | Found Flightbrick 4052 | -10/Subcaves | A swath of the cavern ceiling suddenly collapsed 4072 | -10/Subcaves | Lost 5 parts (1p2n1u1w) 4123 | -10/Subcaves | Identified Thief Drone Bay 4160 | -10/Subcaves | Disturbed a concealed Subdweller 4201 | -10/Subcaves | Discovered new exit (range 12) 4241 | -10/Subcaves | Discovered new exit (range 89) 4259 | -10/Subcaves | Discovered new exit (range 65) 4300 | -10/Subcaves | Entered Materials 4300 | -8/Materials | Evolved 4 slots: Propulsion x2, Utility x2 4301 | -8/Materials | Identified exit to Factory 4302 | -8/Materials | Loaded intel: 12 terminal locations 4302 | -8/Materials | Attached Flightbrick, gained temporary slots: Utility x3 4697 | -8/Materials | Build established: Scavenger-Mutant 5163 | -8/Materials | Central database locked down 5590 | -8/Materials | Entered Factory 5590 | -7/Factory | Evolved 2 slots: Propulsion x1, Utility x1 5954 | -7/Factory | Identified exit to Lower Caves 6105 | -7/Factory | Build established: Hacker-Mutant 6305 | -7/Factory | Repaired Imp. Sensor Array 6343 | -7/Factory | Entered Lower Caves 6343 | -7/Lower Caves | Accompanied by 1 ally 6494 | -7/Lower Caves | Learned 4 Factory zone layouts 6590 | -7/Lower Caves | Learned 8 Factory zone layouts 6809 | -7/Lower Caves | Learned 12 Factory zone layouts 6809 | -7/Lower Caves | Discovered new exit (range 11) 7050 | -7/Lower Caves | Identified exit to Lower Caves 7053 | -7/Lower Caves | Entered another Lower Caves area 7095 | -7/Lower Caves | Discovered new exit (range 15) 7099 | -7/Lower Caves | Identified exit to Factory 7262 | -7/Lower Caves | Encountered a Warlord checkpoint 7268 | -7/Lower Caves | Learned 8 Factory zone layouts 7366 | -7/Lower Caves | Discovered new exit (range 10) 7370 | -7/Lower Caves | Identified exit to Data Miner 7566 | -7/Lower Caves | Attacked by a faux Warlord 8100 | -7/Lower Caves | Entered Factory 8100 | -6/Factory | Evolved 2 slots: Propulsion x1, Utility x1 8101 | -6/Factory | Identified exit to Factory 8484 | -6/Factory | Manually triggered Chute Trap 8484 | -6/Factory | Sucked down chute 8484 | -6/Factory | Entered Waste 8486 | -6/Waste | Found Prototype Hackware 8491 | -6/Waste | Spotted C-40 Crusher 8494 | -6/Waste | Spotted C-40 Crusher 8508 | -6/Waste | Spotted C-40 Crusher 8532 | -6/Waste | Warlord forces began an assault 8557 | -6/Waste | Spotted C-40 Crusher 8562 | -6/Waste | Spotted C-40 Crusher 8564 | -6/Waste | Allies destroyed C-40 Crusher 8568 | -6/Waste | Allies destroyed C-40 Crusher 8571 | -6/Waste | Allies destroyed C-40 Crusher 8573 | -6/Waste | Allies destroyed C-40 Crusher 8583 | -6/Waste | Spotted C-40 Crusher 8584 | -6/Waste | Allies destroyed C-40 Crusher 8603 | -6/Waste | Lost 4 allies 8663 | -6/Waste | Discovered new exit (range 10) 8666 | -6/Waste | Identified exit to Factory 8667 | -6/Waste | Entered Factory 8689 | -6/Factory | Identified exit to Lower Caves 9134 | -6/Factory | Identified Exp. System Shield 9259 | -6/Factory | Discovered exit to Factory (range 10) 9733 | -6/Factory | Entered Lower Caves 9795 | -6/Lower Caves | Attracted the attention of an 0b10 checkpoint 9836 | -6/Lower Caves | Learned Factory machine intel 10422 | -6/Lower Caves | Spotted B-75 Beast 10565 | -6/Lower Caves | Identified exit to Lower Caves 10571 | -6/Lower Caves | Encountered a Warlord checkpoint 10584 | -6/Lower Caves | Attracted the attention of an 0b10 outpost 10628 | -6/Lower Caves | Learned Factory emergency access door positions 10645 | -6/Lower Caves | Lost 3 allies 10653 | -6/Lower Caves | Entered another Lower Caves area 10706 | -6/Lower Caves | Discovered exit to Factory (range 5) 10774 | -6/Lower Caves | Identified exit to Zion 10824 | -6/Lower Caves | Encountered a Warlord checkpoint 11445 | -6/Lower Caves | Entered Factory 11445 | -5/Factory | Evolved 2 slots: Utility x2 11447 | -5/Factory | Loaded intel: 266 machine locations 11517 | -5/Factory | Discovered new exit (range 7) 11521 | -5/Factory | Identified exit to Upper Caves 11683 | -5/Factory | Fabricated Adv. Hacking Suite? 11728 | -5/Factory | Repaired Cmb. Gravmag System 11806 | -5/Factory | Repaired Gravmag Array 11907 | -5/Factory | Repaired Cmb. Airjet 11933 | -5/Factory | Central database locked down 12215 | -5/Factory | Fabricated Adv. Hacking Suite (x1) 12520 | -5/Factory | Manually triggered Chute Trap 12520 | -5/Factory | Sucked down chute 12520 | -5/Factory | Entered Waste 12523 | -5/Waste | Build established: Hacker-Scout 12539 | -5/Waste | Spotted C-40 Crusher 12550 | -5/Waste | Warlord forces began an assault 12613 | -5/Waste | Spotted C-40 Crusher 12613 | -5/Waste | Allies destroyed C-40 Crusher 12619 | -5/Waste | Allies destroyed C-40 Crusher 12637 | -5/Waste | Spotted C-40 Crusher 12637 | -5/Waste | Spotted C-40 Crusher 12650 | -5/Waste | Allies destroyed C-40 Crusher 12654 | -5/Waste | Allies destroyed C-40 Crusher 12657 | -5/Waste | Spotted C-40 Crusher 12662 | -5/Waste | Allies destroyed C-40 Crusher 12687 | -5/Waste | Spotted C-40 Crusher 12690 | -5/Waste | Lost 5 allies 12690 | -5/Waste | Allies destroyed C-40 Crusher 12736 | -5/Waste | Discovered new exit (range 10) 12749 | -5/Waste | Identified exit to Factory 12750 | -5/Waste | Entered Factory 12771 | -5/Factory | Identified exit to Extension 13334 | -5/Factory | Discovered new exit (range 10) 13367 | -5/Factory | Repaired Cmb. Airjet 13393 | -5/Factory | Repaired Cmb. Airjet? 13491 | -5/Factory | Fabricated Adv. Weapon Cycler (x2) 13696 | -5/Factory | Entered Upper Caves 13825 | -5/Upper Caves | Entered an active Warlord outpost 13830 | -5/Upper Caves | Learned 8 Factory zone layouts 13830 | -5/Upper Caves | Learned Factory emergency access door positions 13830 | -5/Upper Caves | Learned Extension security intel 13830 | -5/Upper Caves | Learned Armory terminal intel 13830 | -5/Upper Caves | Learned Armory garrison access intel 13884 | -5/Upper Caves | Encountered a Warlord checkpoint 14106 | -5/Upper Caves | Discovered new exit (range 12) 14183 | -5/Upper Caves | Identified exit to Upper Caves 14629 | -5/Upper Caves | Entered another Upper Caves area 14630 | -5/Upper Caves | Identified exit to Warlord 14638 | -5/Upper Caves | Learned Factory garrison access intel 15186 | -5/Upper Caves | Entered Warlord 15208 | -5/Warlord | System corruption cleaned by Quarantine Array 15419 | -5/Warlord | Visited the Vortex Lab 15420 | -5/Warlord | Found Prototype Energy Gun 15420 | -5/Warlord | Identified Vortex Rail 15424 | -5/Warlord | Warlord's base attacked by MAIN.C 15425 | -5/Warlord | Found Prototype Energy Gun 15425 | -5/Warlord | Identified Vortex Shotgun 15428 | -5/Warlord | Found Vortex Rail 15612 | -5/Warlord | Found Prototype Reactor 15614 | -5/Warlord | Found Prototype Device 15614 | -5/Warlord | Identified Exp. Phase Shifter 15621 | -5/Warlord | Found Prototype Device 15621 | -5/Warlord | Identified System Purifier 15624 | -5/Warlord | Found Prototype Processor 15624 | -5/Warlord | Identified Spectral Analyzer 15689 | -5/Warlord | Opened side exit 15765 | -5/Warlord | Lost 4 allies 15774 | -5/Warlord | Warlord forces counterattacked 15775 | -5/Warlord | Discovered new exit (range 9) 15778 | -5/Warlord | Identified exit to Proximity Caves 15803 | -5/Warlord | Entered Proximity Caves 15803 | -4/Proximity Caves | Accompanied by 5 allies 16031 | -4/Proximity Caves | Spotter reported a threat 16061 | -4/Proximity Caves | Discovered new exit (range 6) 16063 | -4/Proximity Caves | Identified exit to Factory 16064 | -4/Proximity Caves | Entered Factory 16064 | -4/Factory | Evolved 2 slots: Utility x2 16065 | -4/Factory | Identified exit to Upper Caves 16066 | -4/Factory | Identified exit to Research 16066 | -4/Factory | Identified exit to Armory 16068 | -4/Factory | Loaded intel: 4 garrison access locations 16200 | -4/Factory | Fabricated Adv. Hacking Suite? 16301 | -4/Factory | Fabricated Adv. Hacking Suite (x1) 16343 | -4/Factory | Fabricated Exp. Targeting Computer (x1) 16382 | -4/Factory | Fabricated Exp. Targeting Computer (x1) 16426 | -4/Factory | Fabricated Prc. Energy Filter (x1) 16729 | -4/Factory | Build established: Wizard-Scout 16843 | -4/Factory | Spotted B-86 Titan 17115 | -4/Factory | Sucked down chute 17115 | -4/Factory | Entered Waste 17123 | -4/Waste | Spotted C-40 Crusher 17144 | -4/Waste | Spotted C-40 Crusher 17155 | -4/Waste | Spotted C-40 Crusher 17160 | -4/Waste | Spotted C-40 Crusher 17165 | -4/Waste | Spotted C-40 Crusher 17165 | -4/Waste | Spotted C-40 Crusher 17170 | -4/Waste | 1 allies followed down the chute 17225 | -4/Waste | Discovered new exit (range 12) 17229 | -4/Waste | Identified exit to Factory 17230 | -4/Waste | Entered Factory 17476 | -4/Factory | Fabricated Prc. Energy Filter? 17523 | -4/Factory | Fabricated Graphene Brace (x2) 17575 | -4/Factory | Fabricated Exp. Utility Shielding (x1) 17622 | -4/Factory | Fabricated Exp. Signal Interpreter (x1) 17810 | -4/Factory | Repaired Phase Cannon 18083 | -4/Factory | Spotted B-86 Titan 18148 | -4/Factory | Discovered exit to Research (range 5) 18563 | -4/Factory | Discovered exit to Research (range 12) 18576 | -4/Factory | Imp. Hacking Suite fried by hacking feedback 18658 | -4/Factory | Identified Vortex Chain Reactor 18767 | -4/Factory | Spotted B-86 Titan 18819 | -4/Factory | Entered Upper Caves 18827 | -4/Upper Caves | Attracted the attention of an 0b10 checkpoint 18855 | -4/Upper Caves | Encountered a Warlord checkpoint 18976 | -4/Upper Caves | Discovered new exit (range 17) 19039 | -4/Upper Caves | Identified exit to Upper Caves 19039 | -4/Upper Caves | Entered another Upper Caves area 19060 | -4/Upper Caves | Encountered a Warlord checkpoint 19063 | -4/Upper Caves | Discovered exit to Research (range 17) 19403 | -4/Upper Caves | Discovered new exit (range 10) 19407 | -4/Upper Caves | Identified exit to Zhirov 19407 | -4/Upper Caves | Entered Zhirov 19409 | -4/Zhirov | Discovered new exit (range 4) 19418 | -4/Zhirov | Met Zhirov 19429 | -4/Zhirov | Learned location of Quarantine (-2) 19429 | -4/Zhirov | Learned location of Testing (-3) 19429 | -4/Zhirov | Learned location of Command (-1) 19432 | -4/Zhirov | Zhirov requested help retrieving the SGEMP Prototype 19446 | -4/Zhirov | Found Alien Artifact 19446 | -4/Zhirov | Identified Integrated Reactor 19446 | -4/Zhirov | Installed Integrated Reactor, increased core energy generation (+10) 19494 | -4/Zhirov | Found Alien Artifact 19679 | -4/Zhirov | Identified exit to Proximity Caves 19684 | -4/Zhirov | Entered Proximity Caves 19686 | -3/Proximity Caves | Spotter reported a threat 19687 | -3/Proximity Caves | Spotter reported a threat 19757 | -3/Proximity Caves | Discovered exit to Research (range 16) 19764 | -3/Proximity Caves | Entered Research 19764 | -3/Research | Evolved 2 slots: Power x1, Utility x1 19777 | -3/Research | Identified exit to Testing 20286 | -3/Research | Fabricated Gamma Bomb Array? 20378 | -3/Research | Identified Transdimensional Reconstructor 20378 | -3/Research | Warped through subspace 20392 | -3/Research | Spotted B-86 Titan 20471 | -3/Research | Found Imp. Powered Armor 20748 | -3/Research | Build established: Hacker-Assassin 21180 | -3/Research | System corruption reached 10% 21204 | -3/Research | Core integrity fell below 50% 21281 | -3/Research | Entered Testing 21326 | -3/Testing | Lost 9 parts (1p3n3u2w) 21443 | -3/Testing | Repaired Broken Cmb. Antigrav System 21523 | -3/Testing | Build established: Hacker-Mutant 21544 | -3/Testing | Found Prototype Energy Cannon 21546 | -3/Testing | Found Prototype Energy Cannon 21685 | -3/Testing | Identified exit to Research 21694 | -3/Testing | Lost 9 parts (1p6n1u1w) 21697 | -3/Testing | Core integrity fell below 20% 21716 | -3/Testing | Destroyed by P-80 Master with Gamma Rifle Last Messages --------------- 21685_ Connecting with Terminal... >>Access(Main) Found 1 level access point to Research: (76,79) Map updated. 21693_ Slammed into G-67 Veteran. 21698_ Slammed into A-15 Conveyor. 21699_ System corrupted: Component data lost. 21699_ Adv. Hacking Suite destroyed. 21699_ A-15 Conveyor calls for reinforcements. 21699_ ALERT: Hostile activity reported, dispatching reinforcements to area. 21699_ Slammed into G-67 Veteran. 21700_ G-67 Veteran knocked back. 21701_ Slammed into G-67 Veteran. 21707_ Acquired 26 matter. 21709_ K-01 Serf collects debris. 21713_ Slug penetrates Wall. 21713_ Adv. Hacking Suite destroyed. 21716_ K-01 Serf destroyed. Map ----- +----------------------------------------------------+ | ????????????????????????????????????# #??????????? | | ????????????????????????????????????# #??????????? | | ????????????????????????????????????# #??????????? | | ????????????????????????????????????# #??????????? | | ????????????????????????????????????# ############ | | ???????????????????????????##???????# | | ???????????????????????????# ??????# ############ | | ???????????????????????????# ####### #??????????? | | ???????????????????????????# ! #??????????? | | ??????###??????????????????#### |#####??????????? | | ?????## ######+############# ! #??????????????? | | ?????? ^ #??????????????? | | ?????? ^ #??????????????? | | ?????? #??????????????? | | ??????????" """" """ #??????????????? | | ???????"??" """" """ #??????????????? | | ?????" """" """" """ p#########??????????????? | | ??"""" """" """" """ #??????????????????? | | !""""#??????????????????? | | " """" """" """" """" g!!"F""#??????????????????? | | " """" """" """" """" !!!]]""#??????????????????? | | " """" """" """" """" =!!!"""#??????????????????? | | " """" """" """" """" !!!!"" #??????????????????? | | !!#####??????????????????? | | u !!#??????????????????????? | | R @#??????????????????????? | | k c g ok #??????????????????????? | | ##########+#####% #??????????????????????? | | #?# #* #??????????????????????? | | ### # #??????????????????????? | | + # ?????????????????????? | | #?# """ # ????